fUST/lending_fUST_20260113
["ID","MTS","AMOUNT","RATE_DAILY","PERIOD"]
[401579762,1768307440118,-1602.16003886,0.00016164,2]
[401579763,1768307440128,-2264.10087164,0.00016183,2]
[401579764,1768307440137,-1000.0,0.00016215,5]
[401579765,1768307440146,-2347.87260389,0.00016238,2]
[401579766,1768307440266,-2434.74389024,0.00016293,2]
[401579767,1768307440276,-2524.82941417,0.00016348,2]
[401579768,1768307440287,-2618.2481025,0.00016403,2]
[401579769,1768307440298,-7718.3842175,0.00016438,2]
[401579770,1768307440307,-257.8,0.00016438,2]
[401579771,1768307440317,-500.67938577,0.00016438,2]
[401579772,1768307440326,-200.0,0.00016438,2]
[401579773,1768307440336,-3000.0,0.00016438,2]
[401579774,1768307440347,-3008.83088113,0.00016438,2]
[401579775,1768307440356,-2715.12328229,0.00016458,2]
[401579776,1768307440365,-180.10446059,0.0001646,2]
[401579777,1768307440374,-2815.58284374,0.00016513,2]
[401579778,1768307440383,-323.39571937,0.00016566,2]
[401579779,1768307440392,-2312.83697232,0.00016566,2]
[401579780,1768307440402,-151.0,0.00016566,2]
[401579781,1768307440411,-478.75725327,0.00016566,2]
[401579782,1768307440420,-2919.75940895,0.00016568,2]
[401579783,1768307440429,-3027.79050709,0.00016623,2]
[401579784,1768307440440,-3139.81875585,0.00016678,2]
[401579785,1768307440450,-500.0,0.00016758,2]
[401579786,1768307440460,-500.0,0.00016758,2]
[401579787,1768307440471,-688.0,0.00016758,2]
[401579788,1768307440480,-500.0,0.00016758,2]
[401579789,1768307440490,-539.0,0.00016758,2]
[401579790,1768307440499,-3884.2495199,0.00016758,2]
[401579791,1768307440509,-2668.85838861,0.00016798,2]
[401579792,1768307440518,-500.0,0.00016895,2]
[401579793,1768307440527,-283.98664865,0.00016895,2]
[401579794,1768307440536,-500.0,0.00016895,2]
[401579795,1768307440545,-688.0,0.00016895,2]
[401579796,1768307440554,-500.0,0.00016895,2]
[401579797,1768307440563,-539.0,0.00016895,2]
[401579798,1768307440572,-1722.2043065,0.00016897,2]
[401579799,1768307440580,-778.0,0.000169,2]
[401579800,1768307440589,-257.8,0.00016944,2]
[401579801,1768307440598,-629.0,0.00016951,2]
[401579802,1768307440609,-2147.0,0.00016951,2]
[401579803,1768307440618,-1367.0,0.00016951,2]
[401579804,1768307440627,-715.0,0.00016951,2]
[401579805,1768307440636,-197.738,0.00016951,2]
[401579806,1768307440646,-417.0,0.00016951,2]
[401579807,1768307440656,-417.0,0.00016951,2]
[401579808,1768307440665,-2000.0,0.00016986,2]
[401579809,1768307440674,-1183.42470219,0.00017,2]
[401579810,1768307440683,-500.0,0.00017032,2]
[401579811,1768307440692,-500.0,0.00017032,2]
[401579812,1768307440701,-688.0,0.00017032,2]
[401579813,1768307440711,-174.14938237,0.00017032,2]
[401579814,1768307440720,-539.0,0.00017032,2]
[401579815,1768307440729,-500.0,0.00017035,2]
[401579816,1768307440738,-500.0,0.00017035,2]
[401579817,1768307440750,-500.0,0.00017035,2]
[401579818,1768307440762,-500.0,0.00017035,2]
[401579819,1768307440772,-542.10246644,0.00017035,2]
[401579820,1768307440781,-500.0,0.00017035,2]
[401579821,1768307440790,-500.0,0.00017035,2]
[401579822,1768307440799,-163.02891273,0.00017035,2]
[401579823,1768307440809,-500.0,0.00017035,2]
[401579824,1768307440818,-500.0,0.00017035,2]
[401579825,1768307440830,-500.0,0.00017035,2]
[401579826,1768307440839,-500.0,0.00017035,2]
[401579827,1768307440849,-500.0,0.00017035,2]
[401579828,1768307440858,-500.0,0.00017035,2]
[401579829,1768307440869,-405.21456061,0.00017035,2]
[401579830,1768307440878,-500.0,0.00017035,2]
[401579831,1768307440887,-500.0,0.00017035,2]
[401579832,1768307440897,-500.0,0.00017035,2]
[401579833,1768307440906,-500.0,0.00017035,2]
[401579834,1768307440915,-500.0,0.00017035,2]
[401579835,1768307440924,-500.0,0.00017035,2]
[401579836,1768307440933,-34591.3981886,0.00017036,2]
[401579837,1768307440942,-909.93048357,0.0001705,2]
[401579838,1768307440951,-281.0,0.000171,2]
[401579839,1768307440960,-2586739.23229513,0.000171,2]
[401579840,1768307440970,-478.19593588,0.00017114,2]
[401579841,1768307440979,-2398.4119403,0.00017114,2]
[401579842,1768307440988,-496.47127164,0.00017114,2]
[401579843,1768307440998,-151.72783748,0.00017169,2]
[401579844,1768307441007,-500.0,0.00017169,2]
[401579845,1768307441016,-688.0,0.00017169,2]
[401579846,1768307441025,-241.43044875,0.00017169,2]
[401579847,1768307441034,-539.0,0.00017169,2]
[401579848,1768307441043,-297.76958579,0.00017169,2]
[401579849,1768307441052,-400.59251913,0.00017272,2]
[401579850,1768307441061,-500.0,0.00017306,2]
[401579851,1768307441071,-688.0,0.00017306,2]
[401579852,1768307441079,-539.0,0.00017306,2]
[401579853,1768307441090,-168.93693743,0.00017387,2]
[401579854,1768307441100,-864.0,0.00017396,2]
[401579855,1768307441109,-500.0,0.00017443,2]
[401579856,1768307441117,-688.0,0.00017443,2]
[401579857,1768307441126,-539.0,0.00017443,2]
[401579858,1768307441135,-257.8,0.00017449,2]
[401579859,1768307441144,-823.0,0.0001749,2]
[401579860,1768307441154,-400.0,0.00017534,2]
[401579861,1768307441163,-20892.0,0.0001755,2]
[401579862,1768307441172,-500.0,0.0001758,2]
[401579863,1768307441181,-688.0,0.0001758,2]
[401579864,1768307441190,-539.0,0.0001758,2]
[401579865,1768307441199,-2487.15318209,0.00017662,2]
[401579866,1768307441208,-514.84070869,0.00017662,2]
[401579867,1768307441218,-160.0,0.00017682,3]
[401579868,1768307441227,-500.0,0.00017717,2]
[401579869,1768307441235,-688.0,0.00017717,2]
[401579870,1768307441245,-539.0,0.00017717,2]
[401579871,1768307441264,-9677.34,0.00017852,2]
[401579872,1768307441274,-500.0,0.00017854,2]
[401579873,1768307441283,-688.0,0.00017854,2]
[401579874,1768307441293,-539.0,0.00017854,2]
[401579875,1768307441303,-495.0,0.0001788,2]
[401579876,1768307441313,-709.0,0.0001788,2]
[401579877,1768307441323,-557.70643191,0.000179,2]
[401579878,1768307441332,-728.0,0.000179,2]
[401579879,1768307441343,-257.8,0.00017955,2]
[401579880,1768307441352,-630.32995662,0.00017991,2]
[401579881,1768307441361,-688.0,0.00017991,2]
[401579882,1768307441371,-539.0,0.00017991,2]
[401579883,1768307441381,-41716.32353624,0.00018,5]
[401579884,1768307441390,-63761.73730551,0.00018,2]
[401579885,1768307441400,-151.0,0.00018,2]
[401579886,1768307441409,-1754.48700477,0.00018,2]
[401579887,1768307441418,-35714.32,0.000181,3]
[401579888,1768307441428,-688.0,0.00018128,2]
[401579889,1768307441437,-539.0,0.00018128,2]
[401579890,1768307441446,-3636.08221235,0.00018187,2]
[401579891,1768307441455,-160.0,0.00018188,4]
[401579892,1768307441465,-2579.17784983,0.0001821,2]
[401579893,1768307441474,-533.88981491,0.0001821,2]
[401579894,1768307441484,-688.0,0.00018265,2]
[401579895,1768307441494,-539.0,0.00018265,2]
[401579896,1768307441504,-728.0,0.0001835,2]
[401579897,1768307441513,-728.0,0.0001835,2]
[401579898,1768307441523,-728.0,0.0001835,2]
[401579899,1768307441532,-728.0,0.000184,2]
[401579900,1768307441542,-728.0,0.000184,2]
[401579901,1768307441551,-688.0,0.00018402,2]
[401579902,1768307441560,-539.0,0.00018402,2]
[401579903,1768307441569,-178.898,0.00018452,2]
[401579904,1768307441579,-178.25346145,0.00018452,2]
[401579905,1768307441588,-257.8,0.00018461,2]
[401579906,1768307441597,-219.08,0.000185,7]
[401579907,1768307441607,-2076.04056834,0.000185,7]
[401579908,1768307441616,-168.0,0.0001853,2]
[401579909,1768307441625,-160.0,0.00018533,2]
[401579910,1768307441635,-688.0,0.00018539,2]
[401579911,1768307441644,-539.0,0.00018539,2]
[401579912,1768307441654,-600.0,0.0001863,2]
[401579913,1768307441663,-168.0,0.00018665,2]
[401579914,1768307441672,-728.0,0.0001867,2]
[401579915,1768307441681,-728.0,0.0001867,2]
[401579916,1768307441690,-688.0,0.00018676,2]
[401579917,1768307441699,-539.0,0.00018676,2]
[401579918,1768307441708,-160.0,0.00018694,5]
[401579919,1768307441718,-728.0,0.0001872,2]
[401579920,1768307441727,-168.0,0.00018747,2]
[401579921,1768307441737,-2674.60743027,0.00018758,2]
[401579922,1768307441747,-553.64373807,0.00018758,2]
[401579923,1768307441756,-346.02342806,0.00018778,17]
[401579924,1768307441767,-728.0,0.00018791,2]
[401579925,1768307441776,-688.0,0.00018813,2]
[401579926,1768307441786,-539.0,0.00018813,2]
[401579927,1768307441795,-168.0,0.00018825,2]
[401579928,1768307441805,-303.10001603,0.000189,2]
[401579929,1768307441814,-35714.28,0.000189,3]
[401579930,1768307441826,-688.0,0.0001895,2]
[401579931,1768307441835,-539.0,0.0001895,2]
[401579932,1768307441845,-257.8,0.00018966,2]
[401579933,1768307441854,-728.0,0.0001899,2]
[401579934,1768307441863,-728.0,0.0001899,2]
[401579935,1768307441873,-160.0,0.0001899,2]
[401579936,1768307441883,-728.0,0.0001899,2]
[401579937,1768307441892,-728.0,0.0001899,2]
[401579938,1768307441902,-728.0,0.0001899,2]
[401579939,1768307441911,-15000.0,0.00019,2]
[401579940,1768307441920,-346.02342806,0.00019057,18]
[401579941,1768307441929,-688.0,0.00019087,2]
[401579942,1768307441939,-539.0,0.00019087,2]
[401579943,1768307441948,-303.10001603,0.00019089,2]
[401579944,1768307441958,-1000.0,0.00019136,2]
[401579945,1768307441967,-1152.0,0.00019175,2]
[401579946,1768307441976,-336933.86178969,0.00019176,2]
[401579947,1768307441985,-151.0,0.00019176,2]
[401579948,1768307441995,-5000.0,0.00019178,2]
[401579949,1768307442004,-4736.82165609,0.00019178,2]
[401579950,1768307442012,-151.0,0.00019178,2]
[401579951,1768307442021,-151.0,0.00019178,2]
[401579952,1768307442030,-151.0,0.00019178,2]
[401579953,1768307442039,-151.0,0.00019178,2]
[401579954,1768307442048,-151.0,0.00019178,2]
[401579955,1768307442057,-151.0,0.00019178,2]
[401579956,1768307442066,-160.34,0.00019193,2]
[401579957,1768307442075,-7718.3842175,0.00019194,2]
[401579958,1768307442089,-4650.01,0.000192,2]
[401579959,1768307442098,-157.94,0.000192,2]
[401579960,1768307442108,-161.93,0.000192,2]
[401579961,1768307442117,-25703.46,0.000192,2]
[401579962,1768307442126,-167.81,0.000192,2]
[401579963,1768307442135,-160.0,0.000192,6]
[401579964,1768307442144,-688.0,0.00019224,2]
[401579965,1768307442154,-539.0,0.00019224,2]
[401579966,1768307442163,-151.488321,0.00019224,2]
[401579967,1768307442172,-151.488321,0.00019224,2]
[401579968,1768307442181,-151.488321,0.00019224,2]
[401579969,1768307442191,-166.89901,0.00019224,2]
[401579970,1768307442200,-151.488321,0.00019224,2]
[401579971,1768307442210,-166.89901,0.00019224,2]
[401579972,1768307442219,-166.89901,0.00019224,2]
[401579973,1768307442228,-166.89901,0.00019224,2]
[401579974,1768307442238,-151.0,0.00019224,2]
[401579975,1768307442248,-168.0,0.00019233,2]
[401579976,1768307442257,-53859.6231369,0.00019244,8]
[401579977,1768307442267,-453.61211725,0.00019272,2]
[401579978,1768307442278,-303.10001603,0.00019278,2]
[401579979,1768307442288,-2551.22780994,0.00019305,10]
[401579980,1768307442298,-2773.56790519,0.00019306,2]
[401579981,1768307442307,-574.12855637,0.00019306,2]
[401579982,1768307442317,-728.0,0.0001931,2]
[401579983,1768307442328,-728.0,0.0001931,2]
[401579985,1768307442337,-728.0,0.0001931,2]
[401579989,1768307442347,-728.0,0.0001931,2]
[401579991,1768307442355,-346.02342806,0.00019335,19]
[401579992,1768307442364,-728.0,0.00019343,2]
[401579994,1768307442373,-688.0,0.00019361,2]
[401579996,1768307442382,-539.0,0.00019361,2]
[401579998,1768307442391,-303.10001603,0.00019467,2]
[401580000,1768307442400,-257.8,0.00019472,2]
[401580002,1768307442410,-168.0,0.00019477,2]
[401580003,1768307442419,-728.0,0.00019488,2]
[401580004,1768307442428,-688.0,0.00019498,2]
[401580005,1768307442438,-539.0,0.00019498,2]
[401580006,1768307442447,-152720.61877199,0.000195,2]
[401580007,1768307442474,-2496.617272,0.000195,2]
[401580018,1768307445027,-3e-08,0.00016733,2]
[401580019,1768307445051,-2317.33693591,0.00016733,2]
[401580020,1768307445062,-303.10001603,0.000189,2]
[401580021,1768307445071,-303.10001603,0.00019089,2]
[401580022,1768307445079,-303.10001603,0.00019278,2]
[401580023,1768307445088,-303.10001603,0.00019467,2]
[401580024,1768307445098,-1032.71570195,0.000195,2]
[401580043,1768307465361,-1663040.36009084,0.000195,2]
[401580044,1768307465371,-168.0,0.00019586,2]
[401580045,1768307465381,-160.0,0.00019607,2]
[401580046,1768307465391,-728.0,0.00019607,2]
[401580047,1768307465400,-346.02342806,0.00019614,21]
[401580048,1768307465410,-728.0,0.0001963,2]
[401580049,1768307465418,-162.0,0.0001963,2]
[401580050,1768307465427,-728.0,0.0001963,2]
[401580051,1768307465436,-688.0,0.00019635,2]
[401580052,1768307465445,-539.0,0.00019635,2]
[401580053,1768307465455,-331.20831593,0.0001964,2]
[401580054,1768307465466,-303.10001603,0.00019656,2]
[401580055,1768307465476,-303.10001603,0.00019656,2]
[401580056,1768307465486,-1722.2043065,0.00019675,2]
[401580057,1768307465497,-168.0,0.00019694,2]
[401580058,1768307465507,-35714.28,0.000197,3]
[401580059,1768307465517,-160.0,0.00019706,7]
[401580060,1768307465527,-168.0,0.00019712,2]
[401580061,1768307465537,-800.0,0.00019726,2]
[401580062,1768307465546,-250.0,0.00019726,2]
[401580063,1768307465557,-728.0,0.00019751,2]
[401580064,1768307465566,-688.0,0.00019772,2]
[401580065,1768307465575,-539.0,0.00019772,2]
[401580066,1768307465585,-303.10001649,0.00019845,4]
[401580067,1768307465594,-454.65002405,0.00019845,4]
[401580068,1768307465604,-2876.18991768,0.00019854,2]
[401580069,1768307465613,-595.37131296,0.00019854,2]
[401580070,1768307465624,-728.0,0.00019856,2]
[401580071,1768307465633,-346.02342806,0.00019892,22]
[401580072,1768307465643,-701.54132005,0.00019909,2]
[401580073,1768307465652,-560.10317951,0.00019909,2]
[401580074,1768307465662,-682.98188397,0.0001995,3]
[401580075,1768307465671,-629.0,0.00019951,2]
[401580076,1768307465681,-2147.0,0.00019951,2]
[401580077,1768307465690,-1367.0,0.00019951,2]
[401580078,1768307465700,-715.0,0.00019951,2]
[401580079,1768307465709,-178.0,0.00019951,2]
[401580080,1768307465719,-417.0,0.00019951,2]
[401580081,1768307465728,-417.0,0.00019951,2]
[401580082,1768307465738,-257.8,0.00019977,2]
[401580083,1768307465748,-993.0,0.0002,2]
[401580084,1768307465757,-1200.0,0.0002,10]
[401580085,1768307465767,-9883.84785895,0.0002,2]
[401580086,1768307465776,-3146.0,0.0002,2]
[401580087,1768307465785,-17949.57581029,0.0002,2]
[401580088,1768307465795,-2655.24361471,0.0002,2]
[401580089,1768307465804,-205.35775222,0.0002,2]
[401580090,1768307465814,-200.0,0.0002,2]
[401580091,1768307465823,-250.0,0.0002,2]
[401580092,1768307465835,-517.451268,0.0002,5]
[401580093,1768307465910,-7715.5735513,0.0002,2]
[401580094,1768307465920,-454.65002405,0.00020034,4]
[401580095,1768307465930,-728.0,0.00020058,2]
[401580096,1768307465939,-728.0,0.00020099,2]
[401580097,1768307465948,-728.0,0.00020128,2]
[401580098,1768307465958,-709.0,0.00020156,2]
[401580099,1768307465967,-346.02342806,0.0002017,24]
[401580100,1768307465976,-160.0,0.00020213,8]
[401580101,1768307465986,-454.65002405,0.00020223,4]
[401580102,1768307465995,-728.0,0.00020247,2]
[401580103,1768307466004,-350.0,0.00020274,2]
[401580104,1768307466014,-5000.0,0.00020345,2]
[401580105,1768307466023,-2982.60894464,0.00020402,2]
[401580106,1768307466032,-617.40005154,0.00020402,2]
[401580107,1768307466042,-303.10001558,0.00020412,4]
[401580108,1768307466051,-346.02342806,0.00020449,25]
[401580109,1768307466060,-248.90075222,0.0002045,30]
[401580110,1768307466071,-728.0,0.00020476,2]
[401580111,1768307466080,-257.8,0.00020483,2]
[401580112,1768307466089,-4650.01,0.000207,2]
[401580113,1768307466099,-157.94,0.000207,2]
[401580114,1768307466109,-25703.46,0.000207,2]
[401580115,1768307466119,-151.0,0.000207,2]
[401580116,1768307466129,-151.0,0.000207,2]
[401580117,1768307466138,-151.0,0.000207,2]
[401580118,1768307466147,-151.0,0.000207,2]
[401580119,1768307466156,-176.029058,0.000207,2]
[401580120,1768307466167,-160.0,0.00020719,9]
[401580121,1768307466177,-151.0,0.00020722,2]
[401580122,1768307466186,-151.0,0.00020722,2]
[401580123,1768307466195,-346.02342806,0.00020727,26]
[401580124,1768307466206,-202.75083062,0.00020768,2]
[401580125,1768307466217,-728.0,0.00020796,2]
[401580126,1768307466226,-1000.0,0.00020822,2]
[401580127,1768307466236,-450.0,0.00020822,2]
[401580128,1768307466245,-640.24385345,0.0002095,2]
[401580129,1768307466255,-300.0,0.00020982,2]
[401580130,1768307466266,-257.8,0.00020989,2]
[401580131,1768307466275,-704.85,0.00021,7]
[401580132,1768307466285,-7008.24681682,0.00021,2]
[401580133,1768307466295,-3000.0,0.00021,2]
[401580134,1768307466305,-346.02342806,0.00021006,28]
[401580135,1768307466316,-2000.0,0.00021009,7]
[401580136,1768307466325,-3000.0,0.0002101,2]
[401580137,1768307466335,-3000.0,0.0002102,2]
[401580138,1768307466344,-1613.0,0.00021023,2]
[401580139,1768307466355,-3000.0,0.0002103,2]
[401580140,1768307466364,-3000.0,0.0002104,2]
[401580141,1768307466374,-1000.0,0.00021049,2]
[401580142,1768307466383,-244.0,0.00021049,2]
[401580143,1768307466400,-3000.0,0.0002105,2]
[401580144,1768307466430,-3000.0,0.0002106,2]
[401580145,1768307466455,-3000.0,0.0002107,2]
[401580146,1768307466479,-3000.0,0.0002108,2]
[401580147,1768307466501,-3000.0,0.0002109,2]
[401580148,1768307466517,-3000.0,0.000211,2]
[401580149,1768307466536,-3000.0,0.0002111,2]
[401580150,1768307466551,-3000.0,0.0002112,2]
[401580151,1768307466566,-3000.0,0.0002113,2]
[401580152,1768307466585,-3000.0,0.0002114,2]
[401580153,1768307466603,-728.0,0.00021145,2]
[401580154,1768307466620,-3000.0,0.0002115,2]
[401580155,1768307466635,-3000.0,0.0002116,2]
[401580156,1768307466652,-3000.0,0.0002117,2]
[401580157,1768307466668,-3000.0,0.0002118,2]
[401580158,1768307466683,-3000.0,0.0002119,2]
[401580159,1768307466697,-3000.0,0.000212,2]
[401580160,1768307466710,-151.0,0.000212,2]
[401580161,1768307466725,-3000.0,0.0002121,2]
[401580162,1768307466739,-151.488321,0.0002121,2]
[401580163,1768307466753,-151.488321,0.0002121,2]
[401580164,1768307466767,-151.488321,0.0002121,2]
[401580165,1768307466782,-166.89901,0.0002121,2]
[401580166,1768307466795,-151.488321,0.0002121,2]
[401580167,1768307466809,-166.89901,0.0002121,2]
[401580168,1768307466824,-166.89901,0.0002121,2]
[401580169,1768307466839,-166.89901,0.0002121,2]
[401580170,1768307466854,-3000.0,0.0002122,2]
[401580171,1768307466868,-160.0,0.00021225,10]
[401580172,1768307466882,-267.40479066,0.00021225,5]
[401580173,1768307466896,-3000.0,0.0002123,2]
[401580174,1768307466911,-3000.0,0.0002124,2]
[401580175,1768307466925,-3000.0,0.0002125,2]
[401580176,1768307466938,-3000.0,0.0002126,2]
[401580177,1768307466951,-3000.0,0.0002127,2]
[401580178,1768307466965,-3000.0,0.0002128,2]
[401580179,1768307466978,-346.02342806,0.00021284,29]
[401580180,1768307466993,-3000.0,0.0002129,2]
[401580181,1768307467006,-3000.0,0.000213,2]
[401580182,1768307467022,-3000.0,0.0002131,2]
[401580183,1768307467035,-3000.0,0.0002132,2]
[401580184,1768307467049,-3000.0,0.0002133,2]
[401580185,1768307467063,-3000.0,0.0002134,2]
[401580186,1768307467077,-3000.0,0.0002135,2]
[401580187,1768307467091,-3000.0,0.0002136,2]
[401580188,1768307467105,-550.0,0.0002137,2]
[401580189,1768307467119,-3000.0,0.0002137,2]
[401580190,1768307467133,-3000.0,0.0002138,2]
[401580191,1768307467147,-3000.0,0.0002139,2]
[401580192,1768307467244,-3000.0,0.000214,2]
[401580193,1768307467254,-3000.0,0.0002141,2]
[401580194,1768307467264,-3000.0,0.0002142,2]
[401580195,1768307467273,-5140.341489,0.0002143,2]
[401580196,1768307467283,-257.8,0.00021494,2]
[401580197,1768307467292,-673.37663447,0.00021498,2]
[401580198,1768307467301,-346.02342806,0.00021562,30]
[401580199,1768307467311,-376.834513,0.00021616,2]
[401580200,1768307467320,-1500.0,0.0002177,30]
[401580201,1768307467329,-346.02342806,0.00021841,30]
[401580202,1768307467338,-216.35672,0.00021918,2]
[401580203,1768307467348,-151.0,0.00021918,2]
[401580204,1768307467357,-151.0,0.00021918,2]
[401580205,1768307467368,-151.0,0.00021918,2]
[401580206,1768307467377,-213.034956,0.00021918,2]
[401580207,1768307467387,-213.034956,0.00021918,2]
[401580208,1768307467396,-213.034956,0.00021918,2]
[401580209,1768307467406,-213.034956,0.00021918,2]
[401580210,1768307467417,-151.0,0.00021918,2]
[401580211,1768307467426,-153.262229,0.00021918,2]
[401580212,1768307467435,-151.0,0.00021918,2]
[401580213,1768307467446,-151.0,0.00021918,2]
[401580214,1768307467455,-151.0,0.00021918,2]
[401580215,1768307467466,-151.0,0.00021918,2]
[401580216,1768307467476,-151.0,0.00021918,2]
[401580217,1768307467486,-151.0,0.00021918,2]
[401580218,1768307467495,-151.0,0.00021918,2]
[401580219,1768307467505,-151.0,0.00021918,2]
[401580220,1768307467515,-151.0,0.00021918,2]
[401580221,1768307467527,-151.0,0.00021918,2]
[401580222,1768307467536,-184.82134,0.00021918,2]
[401580223,1768307467545,-184.82134,0.00021918,2]
[401580224,1768307467554,-207.456427,0.00021918,2]
[401580225,1768307467564,-184.82134,0.00021918,2]
[401580226,1768307467573,-184.82134,0.00021918,2]
[401580227,1768307467583,-184.82134,0.00021918,2]
[401580228,1768307467592,-184.82134,0.00021918,2]
[401580229,1768307467601,-184.82134,0.00021918,2]
[401580230,1768307467611,-184.82134,0.00021918,2]
[401580231,1768307467620,-151.0,0.00021918,2]
[401580232,1768307467630,-238.881235,0.00021918,2]
[401580233,1768307467639,-165.293585,0.00021918,2]
[401580234,1768307467648,-165.293585,0.00021918,2]
[401580235,1768307467658,-165.293585,0.00021918,2]
[401580236,1768307467667,-165.293585,0.00021918,2]
[401580237,1768307467677,-165.293585,0.00021918,2]
[401580238,1768307467686,-151.0,0.00021918,2]
[401580239,1768307467695,-165.293585,0.00021918,2]
[401580240,1768307467704,-151.0,0.00021918,2]
[401580241,1768307467714,-155.194908,0.00021918,2]
[401580242,1768307467723,-165.293585,0.00021918,2]
[401580243,1768307467733,-165.293585,0.00021918,2]
[401580244,1768307467743,-165.293585,0.00021918,2]
[401580245,1768307467752,-165.293585,0.00021918,2]
[401580246,1768307467762,-165.293585,0.00021918,2]
[401580247,1768307467772,-165.293585,0.00021918,2]
[401580248,1768307467782,-151.0,0.00021918,2]
[401580249,1768307467791,-151.0,0.00021918,2]
[401580250,1768307467800,-151.0,0.00021918,2]
[401580251,1768307467810,-151.0,0.00021918,2]
[401580252,1768307467819,-151.0,0.00021918,2]
[401580253,1768307467828,-292.018514,0.00021918,2]
[401580254,1768307467843,-167.750399,0.00021918,2]
[401580255,1768307467852,-151.000002,0.00021918,2]
[401580256,1768307467862,-255.312577,0.00021918,2]
[401580257,1768307467871,-178.080255,0.00021918,2]
[401580258,1768307467882,-151.0,0.00021918,2]
[401580259,1768307467892,-157.506983,0.00021918,2]
[401580260,1768307467901,-151.0,0.00021918,2]
[401580261,1768307467912,-151.0,0.00021918,2]
[401580262,1768307467921,-151.0,0.00021918,2]
[401580263,1768307467930,-152.690334,0.00021918,2]
[401580264,1768307467939,-151.0,0.00021918,2]
[401580265,1768307467948,-151.0,0.00021918,2]
[401580266,1768307467957,-151.0,0.00021918,2]
[401580267,1768307467967,-151.0,0.00021918,2]
[401580268,1768307467976,-151.0,0.00021918,2]
[401580269,1768307467985,-151.0,0.00021918,2]
[401580270,1768307467995,-151.0,0.00021918,2]
[401580271,1768307468004,-151.0,0.00021918,2]
[401580272,1768307468013,-151.0,0.00021918,2]
[401580273,1768307468022,-151.0,0.00021918,2]
[401580274,1768307468032,-151.0,0.00021918,2]
[401580275,1768307468041,-151.0,0.00021918,2]
[401580276,1768307468051,-151.0,0.00021918,2]
[401580277,1768307468060,-151.0,0.00021918,2]
[401580278,1768307468069,-151.0,0.00021918,2]
[401580279,1768307468079,-151.0,0.00021918,2]
[401580280,1768307468088,-151.0,0.00021918,2]
[401580281,1768307468097,-151.0,0.00021918,2]
[401580282,1768307468107,-151.0,0.00021918,2]
[401580283,1768307468116,-151.0,0.00021918,2]
[401580284,1768307468125,-289.997557,0.00021918,2]
[401580285,1768307468134,-190.224085,0.00021918,2]
[401580286,1768307468144,-190.224085,0.00021918,2]
[401580287,1768307468153,-190.224085,0.00021918,2]
[401580288,1768307468163,-190.224085,0.00021918,2]
[401580289,1768307468172,-190.224085,0.00021918,2]
[401580290,1768307468182,-190.224085,0.00021918,2]
[401580291,1768307468191,-190.224085,0.00021918,2]
[401580292,1768307468201,-190.224085,0.00021918,2]
[401580293,1768307468211,-190.224085,0.00021918,2]
[401580294,1768307468220,-190.224085,0.00021918,2]
[401580295,1768307468229,-190.224085,0.00021918,2]
[401580296,1768307468239,-190.224085,0.00021918,2]
[401580297,1768307468248,-1200.0,0.00021918,2]
[401580298,1768307468258,-650.0,0.00021918,2]
[401580299,1768307468267,-221.02555659,0.00021973,30]